fUSD/lending_fUSD_20251123
["ID","MTS","AMOUNT","RATE_DAILY","PERIOD"]
[394776632,1763937042480,-242.52879515,0.00039334,8]
[394776634,1763937042490,-287.61484794,0.00039334,8]
[394776636,1763937042500,-500.0,0.00039334,8]
[394776638,1763937042510,-500.0,0.00039334,8]
[394776640,1763937042519,-500.0,0.00039334,8]
[394776642,1763937042529,-500.0,0.00039334,8]
[394776644,1763937042537,-500.0,0.00039334,8]
[394776646,1763937042547,-384.33833276,0.00039334,8]
[394776648,1763937042556,-500.0,0.00039334,8]
[394776650,1763937042565,-500.0,0.00039334,8]
[394776652,1763937042574,-500.0,0.00039334,8]
[394776654,1763937042584,-500.0,0.00039334,8]
[394776655,1763937042593,-500.0,0.00039334,8]
[394776656,1763937042602,-500.0,0.00039334,8]
[394776657,1763937042612,-500.0,0.00039334,8]
[394776658,1763937042621,-500.0,0.00039334,8]
[394776659,1763937042630,-543.97267534,0.00039334,8]
[394776660,1763937042640,-500.0,0.00039334,8]
[394776661,1763937042649,-500.0,0.00039334,8]
[394776662,1763937042658,-500.0,0.00039334,8]
[394776663,1763937042667,-500.0,0.00039334,8]
[394776664,1763937042677,-199.65242565,0.00039334,8]
[394776665,1763937042686,-500.0,0.00039334,8]
[394776666,1763937042695,-500.0,0.00039334,8]
[394776667,1763937042704,-500.0,0.00039334,8]
[394776668,1763937042714,-500.0,0.00039334,8]
[394776669,1763937042723,-500.0,0.00039334,8]
[394776670,1763937042732,-500.0,0.00039334,8]
[394776671,1763937042741,-500.0,0.00039334,8]
[394776672,1763937042750,-500.0,0.00039334,8]
[394776673,1763937042759,-500.0,0.00039334,2]
[394776674,1763937042768,-500.0,0.00039334,8]
[394776675,1763937042777,-500.0,0.00039334,8]
[394776676,1763937042787,-500.0,0.00039334,8]
[394776677,1763937042797,-500.0,0.00039334,8]
[394776678,1763937042806,-500.0,0.00039334,8]
[394776679,1763937042817,-500.0,0.00039334,8]
[394776680,1763937042827,-500.0,0.00039334,8]
[394776681,1763937042836,-500.0,0.00039334,8]
[394776682,1763937042846,-500.0,0.00039334,8]
[394776683,1763937042855,-500.0,0.00039334,8]
[394776684,1763937042865,-500.0,0.00039334,8]
[394776685,1763937042875,-500.0,0.00039334,8]
[394776686,1763937042885,-500.0,0.00039334,8]
[394776687,1763937042895,-500.0,0.00039334,8]
[394776688,1763937042907,-500.0,0.00039334,8]
[394776689,1763937042916,-500.0,0.00039334,8]
[394776690,1763937042925,-500.0,0.00039334,8]
[394776691,1763937042935,-1507.1,0.00039334,8]
[394776692,1763937042945,-500.0,0.00039334,8]
[394776693,1763937042955,-500.0,0.00039334,8]
[394776694,1763937042965,-500.0,0.00039334,8]
[394776695,1763937042974,-500.0,0.00039334,8]
[394776696,1763937042984,-500.0,0.00039334,8]
[394776697,1763937042993,-500.0,0.00039334,8]
[394776698,1763937043003,-500.0,0.00039334,8]
[394776699,1763937043014,-384.8384144,0.00039334,8]
[394776700,1763937043023,-500.0,0.00039334,8]
[394776701,1763937043033,-500.0,0.00039334,8]
[394776702,1763937043042,-362.54411473,0.00039334,8]
[394776703,1763937043051,-500.0,0.00039334,8]
[394776704,1763937043061,-500.0,0.00039334,8]
[394776705,1763937043072,-500.0,0.00039334,8]
[394776706,1763937043083,-500.0,0.00039334,8]
[394776707,1763937043098,-500.0,0.00039334,8]
[394776708,1763937043108,-500.0,0.00039334,8]
[394776709,1763937043118,-366.5653092,0.00039334,8]
[394776710,1763937043127,-500.0,0.00039334,8]
[394776711,1763937043138,-500.0,0.00039334,8]
[394776712,1763937043148,-604.67,0.00039334,8]
[394776713,1763937043158,-500.0,0.00039334,8]
[394776714,1763937043168,-500.0,0.00039334,8]
[394776715,1763937043178,-500.0,0.00039334,8]
[394776716,1763937043187,-500.0,0.00039334,8]
[394776717,1763937043198,-600.0,0.00039335,30]
[394776718,1763937043210,-500.0,0.00039351,8]
[394776719,1763937043219,-564.49,0.00039351,30]
[394776720,1763937043228,-500.0,0.00039351,8]
[394776721,1763937043238,-500.0,0.00039351,8]
[394776722,1763937043247,-500.0,0.00039351,8]
[394776723,1763937043256,-500.0,0.00039351,8]
[394776724,1763937043266,-500.0,0.00039351,8]
[394776725,1763937043275,-500.0,0.00039351,8]
[394776726,1763937043285,-500.0,0.00039351,8]
[394776727,1763937043294,-500.0,0.00039351,8]
[394776728,1763937043304,-500.0,0.00039351,8]
[394776729,1763937043314,-500.0,0.00039351,8]
[394776730,1763937043323,-500.0,0.00039356,7]
[394776731,1763937043333,-900.0,0.00039356,7]
[394776732,1763937043343,-500.0,0.00039356,7]
[394776733,1763937043352,-1100.0,0.00039361,2]
[394776734,1763937043362,-161.23270046,0.00039435,2]
[394776735,1763937043372,-203.79281274,0.00039451,7]
[394776736,1763937043382,-1000.0,0.00039451,3]
[394776737,1763937043392,-1100.0,0.00039461,2]
[394776738,1763937043402,-1100.0,0.00039461,3]
[394776739,1763937043411,-200.0,0.0003955,2]
[394776740,1763937043421,-1100.0,0.0003956,2]
[394776741,1763937043431,-500.0,0.00039608,8]
[394776743,1763937043440,-1000.0,0.00039608,8]
[394776745,1763937043450,-500.0,0.00039608,8]
[394776746,1763937043459,-500.0,0.00039608,8]
[394776747,1763937043468,-478.42294751,0.00039608,8]
[394776748,1763937043478,-424.63908505,0.00039608,8]
[394776749,1763937043488,-500.0,0.00039608,8]
[394776750,1763937043498,-500.0,0.00039608,8]
[394776751,1763937043507,-500.0,0.00039608,8]
[394776752,1763937043517,-500.0,0.00039608,8]
[394776753,1763937043526,-500.0,0.00039608,8]
[394776754,1763937043536,-500.0,0.00039608,8]
[394776755,1763937043545,-500.0,0.00039608,8]
[394776756,1763937043554,-500.0,0.00039608,8]
[394776757,1763937043563,-239.9640726,0.00039608,8]
[394776758,1763937043572,-500.0,0.00039608,8]
[394776759,1763937043581,-500.0,0.00039608,8]
[394776760,1763937043591,-500.0,0.00039608,8]
[394776761,1763937043601,-500.0,0.00039608,8]
[394776762,1763937043610,-500.0,0.00039608,8]
[394776763,1763937043619,-500.0,0.00039608,8]
[394776764,1763937043628,-500.0,0.00039608,8]
[394776765,1763937043637,-500.0,0.00039608,2]
[394776766,1763937043646,-500.0,0.00039608,8]
[394776767,1763937043655,-500.0,0.00039608,8]
[394776768,1763937043664,-500.0,0.00039608,8]
[394776769,1763937043673,-500.0,0.00039608,8]
[394776770,1763937043682,-500.0,0.00039608,8]
[394776771,1763937043691,-500.0,0.00039608,8]
[394776772,1763937043700,-500.0,0.00039608,8]
[394776773,1763937043708,-500.0,0.00039608,8]
[394776774,1763937043718,-500.0,0.00039608,8]
[394776775,1763937043727,-500.0,0.00039608,8]
[394776776,1763937043737,-632.83659779,0.00039608,8]
[394776777,1763937043746,-500.0,0.00039608,8]
[394776778,1763937043755,-500.0,0.00039608,8]
[394776779,1763937043764,-500.0,0.00039608,8]
[394776780,1763937043773,-500.0,0.00039608,8]
[394776781,1763937043783,-500.0,0.00039608,8]
[394776782,1763937043792,-500.0,0.00039608,8]
[394776783,1763937043802,-1507.1,0.00039608,8]
[394776784,1763937043811,-500.0,0.00039608,8]
[394776785,1763937043821,-500.0,0.00039608,8]
[394776786,1763937043830,-500.0,0.00039608,8]
[394776787,1763937043840,-500.0,0.00039608,8]
[394776788,1763937043850,-500.0,0.00039608,8]
[394776789,1763937043861,-500.0,0.00039608,8]
[394776790,1763937043870,-500.0,0.00039608,8]
[394776791,1763937043879,-500.0,0.00039608,8]
[394776792,1763937043889,-500.0,0.00039608,8]
[394776793,1763937043899,-500.0,0.00039608,8]
[394776794,1763937043908,-500.0,0.00039608,8]
[394776795,1763937043919,-500.0,0.00039608,8]
[394776796,1763937043928,-500.0,0.00039608,8]
[394776797,1763937043938,-554.52526184,0.00039608,8]
[394776798,1763937043948,-500.0,0.00039608,8]
[394776799,1763937043957,-500.0,0.00039608,8]
[394776800,1763937043967,-500.0,0.00039608,8]
[394776801,1763937043976,-604.67,0.00039608,8]
[394776802,1763937043985,-500.0,0.00039608,8]
[394776803,1763937043995,-500.0,0.00039608,8]
[394776804,1763937044004,-500.0,0.00039608,8]
[394776805,1763937044013,-500.0,0.00039608,8]
[394776806,1763937044023,-500.0,0.00039609,30]
[394776807,1763937044033,-500.0,0.00039625,8]
[394776808,1763937044042,-564.53910347,0.00039625,30]
[394776809,1763937044052,-500.0,0.00039625,8]
[394776810,1763937044061,-500.0,0.00039625,8]
[394776811,1763937044071,-500.0,0.00039625,8]
[394776812,1763937044081,-500.0,0.00039625,8]
[394776813,1763937044091,-500.0,0.00039625,8]
[394776814,1763937044104,-500.0,0.00039625,8]
[394776815,1763937044115,-500.0,0.00039625,8]
[394776816,1763937044124,-319.01576837,0.00039625,8]
[394776817,1763937044136,-500.0,0.00039625,8]
[394776818,1763937044145,-1100.0,0.0003966,2]
[394776819,1763937044154,-161.23270046,0.00039679,2]
[394776820,1763937044164,-1237.0,0.000397,2]
[394776821,1763937044175,-200.0,0.00039726,5]
[394776822,1763937044185,-250.0,0.00039726,5]
[394776823,1763937044194,-1256.0,0.00039732,2]
[394776824,1763937044204,-659.0,0.00039732,2]
[394776825,1763937044214,-908.0,0.00039732,2]
[394776826,1763937044223,-1192.0,0.00039732,2]
[394776827,1763937044233,-489.826,0.00039732,2]
[394776828,1763937044242,-2659.0,0.00039732,2]
[394776829,1763937044252,-1100.0,0.0003976,2]
[394776830,1763937044261,-750.6275,0.0003977,2]
[394776831,1763937044270,-1100.0,0.0003986,2]
[394776832,1763937044280,-192.5,0.00039882,8]
[394776833,1763937044290,-500.0,0.00039882,8]
[394776834,1763937044300,-500.0,0.00039882,8]
[394776835,1763937044309,-500.0,0.00039882,8]
[394776836,1763937044319,-500.0,0.00039882,8]
[394776837,1763937044329,-500.0,0.00039882,8]
[394776838,1763937044338,-500.0,0.00039882,8]
[394776839,1763937044349,-55.63731515,0.00039882,8]
[394776840,1763937044400,-444.36268485,0.00039882,8]
[394776841,1763937044410,-34.7858741,0.00039882,8]
[394776842,1763937044426,-465.2141259,0.00039882,8]
[394776843,1763937044470,-500.0,0.00039882,8]
[394776844,1763937044480,-500.0,0.00039882,8]
[394776845,1763937044490,-500.0,0.00039882,8]
[394776846,1763937044500,-500.0,0.00039882,2]
[394776847,1763937044509,-500.0,0.00039882,8]
[394776848,1763937044518,-500.0,0.00039882,8]
[394776849,1763937044528,-500.0,0.00039882,8]
[394776850,1763937044539,-500.0,0.00039882,8]
[394776851,1763937044549,-480.80765107,0.00039882,8]
[394776852,1763937044559,-500.0,0.00039882,8]
[394776853,1763937044568,-500.0,0.00039882,8]
[394776854,1763937044578,-500.0,0.00039882,8]
[394776855,1763937044587,-500.0,0.00039882,8]
[394776856,1763937044596,-500.0,0.00039882,8]
[394776857,1763937044606,-500.0,0.00039882,8]
[394776858,1763937044616,-500.0,0.00039882,8]
[394776859,1763937044625,-500.0,0.00039882,8]
[394776860,1763937044635,-500.0,0.00039882,8]
[394776861,1763937044644,-500.0,0.00039882,8]
[394776862,1763937044653,-500.0,0.00039882,8]
[394776863,1763937044663,-1507.1,0.00039882,8]
[394776864,1763937044672,-500.0,0.00039882,8]
[394776865,1763937044682,-242.78521945,0.00039882,8]
[394776866,1763937044693,-500.0,0.00039882,8]
[394776867,1763937044702,-500.0,0.00039882,8]
[394776868,1763937044712,-500.0,0.00039882,8]
[394776869,1763937044722,-500.0,0.00039882,8]
[394776870,1763937044731,-500.0,0.00039882,8]
[394776871,1763937044741,-500.0,0.00039882,8]
[394776872,1763937044750,-500.0,0.00039882,8]
[394776873,1763937044759,-500.50857369,0.00039882,8]
[394776874,1763937044769,-500.0,0.00039882,8]
[394776875,1763937044779,-500.0,0.00039882,8]
[394776876,1763937044788,-500.0,0.00039882,8]
[394776877,1763937044798,-500.0,0.00039882,8]
[394776878,1763937044807,-500.0,0.00039882,8]
[394776879,1763937044818,-500.0,0.00039882,8]
[394776880,1763937044827,-604.67,0.00039882,8]
[394776881,1763937044837,-500.0,0.00039882,8]
[394776882,1763937044846,-182.96423152,0.00039882,8]
[394776883,1763937044855,-500.0,0.00039882,8]
[394776884,1763937044867,-500.0,0.00039882,8]
[394776885,1763937044876,-500.0,0.00039899,8]
[394776886,1763937044885,-500.0,0.00039899,8]
[394776887,1763937044895,-500.0,0.00039899,8]
[394776888,1763937044904,-570.07158315,0.00039899,8]
[394776889,1763937044915,-500.0,0.00039899,8]
[394776890,1763937044924,-161.23270046,0.00039924,15]
[394776891,1763937044933,-1100.0,0.0003996,2]
[394776892,1763937044942,-1100.0,0.0003996,3]
[394776893,1763937044952,-1096.50534582,0.0004,28]
[394776894,1763937044961,-429.85689222,0.00040044,15]
[394776895,1763937044970,-701.46,0.00040055,2]
[394776896,1763937044979,-1100.0,0.0004006,2]
[394776897,1763937044988,-166.66,0.00040128,30]
[394776898,1763937044997,-500.0,0.00040156,8]
[394776899,1763937045006,-469.99512874,0.00040156,8]
[394776900,1763937045016,-500.0,0.00040156,8]
[394776901,1763937045025,-515.4,0.00040156,8]
[394776902,1763937045035,-500.0,0.00040156,8]
[394776903,1763937045044,-500.0,0.00040156,8]
[394776904,1763937045054,-500.0,0.00040156,8]
[394776905,1763937045063,-500.0,0.00040156,8]
[394776906,1763937045075,-500.0,0.00040156,8]
[394776907,1763937045086,-500.0,0.00040156,8]
[394776908,1763937045097,-500.0,0.00040156,8]
[394776909,1763937045106,-500.0,0.00040156,8]
[394776910,1763937045121,-500.0,0.00040156,8]
[394776911,1763937045130,-500.0,0.00040156,8]
[394776912,1763937045140,-500.0,0.00040156,8]
[394776913,1763937045148,-500.0,0.00040156,8]
[394776914,1763937045157,-500.0,0.00040156,8]
[394776915,1763937045166,-500.0,0.00040156,8]
[394776916,1763937045176,-500.0,0.00040156,8]
[394776917,1763937045185,-500.0,0.00040156,8]
[394776918,1763937045194,-500.0,0.00040156,8]
[394776919,1763937045203,-598.71898331,0.00040156,8]
[394776920,1763937045213,-500.0,0.00040156,8]
[394776921,1763937045222,-500.0,0.00040156,8]
[394776922,1763937045232,-1507.1,0.00040156,8]
[394776923,1763937045242,-500.0,0.00040156,8]
[394776924,1763937045251,-387.37070605,0.00040156,8]
[394776925,1763937045260,-500.0,0.00040156,8]
[394776926,1763937045270,-500.0,0.00040156,8]
[394776927,1763937045279,-500.0,0.00040156,8]
[394776928,1763937045288,-500.0,0.00040156,8]
[394776929,1763937045298,-567.39345916,0.00040156,8]
[394776930,1763937045307,-500.0,0.00040156,8]
[394776931,1763937045317,-500.0,0.00040156,8]
[394776932,1763937045326,-236.1908465,0.00040156,8]
[394776933,1763937045336,-500.0,0.00040156,8]
[394776934,1763937045346,-500.0,0.00040156,8]
[394776935,1763937045355,-500.0,0.00040156,8]
[394776936,1763937045368,-500.0,0.00040156,8]
[394776937,1763937045378,-604.67,0.00040156,8]
[394776938,1763937045388,-500.0,0.00040156,8]
[394776939,1763937045397,-500.0,0.00040156,8]
[394776940,1763937045407,-500.0,0.00040157,120]
[394776941,1763937045417,-1100.0,0.0004016,2]
[394776942,1763937045427,-161.23270046,0.00040168,15]
[394776943,1763937045436,-500.0,0.00040173,8]
[394776944,1763937045445,-500.0,0.00040173,8]
[394776945,1763937045455,-900.0,0.00040178,7]
[394776946,1763937045464,-500.0,0.00040178,7]
[394776947,1763937045473,-169.6,0.00040192,2]
[394776949,1763937045483,-429.85689222,0.00040258,15]
[394776950,1763937045492,-1100.0,0.0004026,2]
[394776951,1763937045502,-1100.0,0.0004026,3]
[394776952,1763937045512,-1247.0,0.00040344,14]
[394776953,1763937045521,-1247.0,0.00040344,14]
[394776954,1763937045530,-1247.0,0.00040344,14]
[394776955,1763937045540,-1247.0,0.00040344,14]
[394776956,1763937045549,-1247.0,0.00040344,14]
[394776957,1763937045559,-1247.0,0.00040344,14]
[394776958,1763937045568,-1247.0,0.00040344,14]
[394776959,1763937045577,-1239.0,0.00040344,14]
[394776960,1763937045587,-2596.7654297,0.00040344,2]
[394776961,1763937045597,-1100.0,0.0004036,2]
[394776962,1763937045606,-161.23270046,0.00040412,15]
[394776963,1763937045617,-292.17,0.00040418,14]
[394776964,1763937045626,-583.33645521,0.0004043,8]
[394776965,1763937045636,-500.0,0.0004043,8]
[394776966,1763937045646,-500.0,0.0004043,8]
[394776967,1763937045656,-500.0,0.0004043,8]
[394776968,1763937045665,-500.0,0.0004043,8]
[394776969,1763937045674,-500.0,0.0004043,8]
[394776970,1763937045683,-500.0,0.0004043,8]
[394776971,1763937045693,-500.0,0.0004043,8]
[394776972,1763937045703,-500.0,0.0004043,8]
[394776973,1763937045712,-248.27198388,0.0004043,8]
[394776974,1763937045721,-500.0,0.0004043,8]
[394776975,1763937045730,-1507.1,0.0004043,8]
[394776976,1763937045739,-500.0,0.0004043,8]
[394776977,1763937045749,-500.0,0.0004043,8]
[394776978,1763937045758,-500.0,0.0004043,8]
[394776979,1763937045767,-500.0,0.0004043,8]
[394776980,1763937045777,-500.0,0.0004043,8]
[394776981,1763937045786,-500.0,0.0004043,8]
[394776982,1763937045796,-500.0,0.0004043,8]
[394776983,1763937045806,-604.67,0.0004043,8]
[394776984,1763937045816,-182.02,0.00040444,14]
[394776985,1763937045825,-500.0,0.00040447,8]
[394776986,1763937045835,-500.0,0.00040447,8]
[394776987,1763937045844,-1100.0,0.0004046,2]
[394776988,1763937045856,-1100.0,0.0004046,3]
[394776989,1763937045866,-429.85689222,0.00040472,15]
[394776990,1763937045875,-1000.0,0.00040472,3]
[394776991,1763937045884,-217.83804072,0.00040536,2]
[394776992,1763937045894,-1100.0,0.00040559,2]
[394776993,1763937045903,-217.83804072,0.00040585,2]
[394776994,1763937045912,-1465.43215,0.0004059,5]
[394776995,1763937045922,-1237.37352836,0.00040613,2]
[394776996,1763937045932,-161.23270046,0.00040656,15]
[394776997,1763937045943,-1224.39040053,0.00040658,120]
[394776998,1763937045952,-1100.0,0.00040659,2]
[394776999,1763937045961,-200.0,0.00040672,20]
[394777000,1763937045971,-429.85689222,0.00040686,15]
[394777001,1763937045982,-500.0,0.00040704,8]
[394777002,1763937045992,-500.0,0.00040704,8]
[394777003,1763937046003,-500.0,0.00040704,8]
[394777004,1763937046014,-532.31544564,0.00040704,8]
[394777005,1763937046023,-317.56630001,0.00040704,8]
[394777006,1763937046032,-500.0,0.00040704,8]
[394777007,1763937046041,-1507.1,0.00040704,8]
[394777008,1763937046051,-381.70440429,0.00040704,8]
[394777009,1763937046060,-500.0,0.00040704,8]
[394777011,1763937046069,-604.67,0.00040704,8]
[394777012,1763937046078,-305.38,0.00040712,7]
[394777013,1763937046088,-328.01026998,0.00040721,8]
[394777014,1763937046101,-500.0,0.00040721,8]
[394777015,1763937046112,-1147.94710868,0.00040721,30]
[394777016,1763937046121,-1100.0,0.00040759,2]
[394777017,1763937046130,-1000.0,0.00040794,3]
[394777018,1763937046141,-2000.0,0.00040795,3]
[394777019,1763937046151,-300.240613,0.000408,102]
[394777020,1763937046160,-1000.0,0.00040801,3]
[394777021,1763937046170,-1100.0,0.00040859,2]
[394777022,1763937046179,-1100.0,0.00040859,3]
[394777023,1763937046188,-1000.0,0.00040899,3]
[394777024,1763937046197,-1000.0,0.00040899,3]
[394777025,1763937046207,-4481.0,0.000409,5]
[394777026,1763937046216,-161.23270046,0.000409,15]
[394777027,1763937046225,-429.85689222,0.000409,15]
[394777028,1763937046234,-169.04924627,0.000409,28]
[394777029,1763937046244,-162.97117022,0.000409,15]
[394777030,1763937046254,-1000.0,0.00040923,3]
[394777031,1763937046263,-1000.0,0.00040941,3]
[394777032,1763937046272,-1000.0,0.00040957,3]
[394777033,1763937046282,-150.0,0.00040958,2]
[394777034,1763937046292,-150.0,0.00040958,2]
[394777035,1763937046302,-151.91673885,0.00040958,2]
[394777036,1763937046311,-150.0,0.00040958,2]
[394777037,1763937046321,-150.0,0.00040958,2]
[394777038,1763937046330,-228.67722041,0.00040958,2]
[394777039,1763937046339,-150.0,0.00040958,2]
[394777040,1763937046348,-150.0,0.00040958,2]
[394777041,1763937046358,-150.0,0.00040958,2]
[394777042,1763937046367,-227.41451534,0.00040958,2]
[394777043,1763937046376,-150.0,0.00040958,2]
[394777044,1763937046386,-150.0,0.00040958,2]
[394777045,1763937046395,-152.93953339,0.00040958,2]
[394777046,1763937046404,-150.0,0.00040958,2]
[394777047,1763937046413,-150.0,0.00040958,2]
[394777048,1763937046422,-150.0,0.00040958,2]
[394777049,1763937046431,-150.0,0.00040958,2]
[394777050,1763937046440,-150.0,0.00040958,2]
[394777051,1763937046450,-150.0,0.00040958,2]
[394777052,1763937046459,-150.0,0.00040958,2]
[394777053,1763937046468,-150.0,0.00040958,2]
[394777054,1763937046478,-150.0,0.00040958,2]
[394777055,1763937046487,-150.0,0.00040958,2]
[394777056,1763937046496,-222.74757741,0.00040958,2]
[394777057,1763937046506,-218.96607501,0.00040958,2]
[394777058,1763937046515,-500.0,0.00040958,2]
[394777059,1763937046525,-150.0,0.00040958,2]
[394777060,1763937046534,-150.0,0.00040958,2]
[394777061,1763937046543,-500.0,0.00040958,2]
[394777062,1763937046552,-500.0,0.00040958,2]
[394777063,1763937046562,-150.0,0.00040958,2]
[394777064,1763937046571,-150.0,0.00040958,2]
[394777065,1763937046580,-1941.0,0.00040958,2]
[394777066,1763937046589,-150.0,0.00040958,2]
[394777067,1763937046598,-150.0,0.00040958,2]
[394777068,1763937046607,-150.0,0.00040958,2]
[394777069,1763937046616,-150.0,0.00040958,2]
[394777070,1763937046625,-150.0,0.00040958,2]
[394777071,1763937046634,-150.0,0.00040958,2]
[394777072,1763937046643,-150.0,0.00040958,2]
[394777073,1763937046652,-150.0,0.00040958,2]
[394777074,1763937046662,-500.0,0.00040958,2]
[394777075,1763937046671,-500.0,0.00040958,2]
[394777076,1763937046680,-1100.0,0.00040959,2]
[394777077,1763937046689,-1100.0,0.00040959,3]
[394777078,1763937046699,-196.157379,0.00040959,120]
[394777079,1763937046708,-151.0,0.00040959,120]
[394777080,1763937046717,-151.0,0.00040959,120]
[394777081,1763937046726,-500.0,0.00040978,8]
[394777082,1763937046735,-500.0,0.00040978,8]
[394777083,1763937046745,-500.0,0.00040978,8]
[394777084,1763937046754,-500.0,0.00040978,8]
[394777085,1763937046763,-1507.1,0.00040978,8]
[394777086,1763937046773,-500.0,0.00040978,8]
[394777087,1763937046782,-604.67,0.00040978,8]
[394777088,1763937046791,-1043.4839407,0.0004098,120]
[394777089,1763937046800,-1000.0,0.00040989,3]
[394777090,1763937046810,-199.92528655,0.0004099,7]
[394777091,1763937046819,-500.0,0.00040995,8]
[394777092,1763937046828,-1969.0500801,0.00040996,2]
[394777093,1763937046837,-20400.5685372,0.00040996,2]
[394777094,1763937046846,-1000.0,0.00040998,3]
[394777095,1763937046855,-1000.0,0.00040998,3]
[394777096,1763937046866,-1000.0,0.00040998,3]
[394777097,1763937046875,-1000.0,0.00040998,3]
[394777098,1763937046885,-300.0,0.00040999,10]
[394777099,1763937046894,-300.0,0.00040999,10]
[394777100,1763937046903,-620.0,0.00040999,6]
[394777101,1763937046912,-574.12855637,0.00040999,6]
[394777102,1763937046921,-281.87122899,0.00040999,6]
[394777103,1763937046931,-500.0,0.00040999,6]
[394777104,1763937046940,-500.0,0.00040999,6]
[394777105,1763937046950,-500.0,0.00040999,6]
[394777106,1763937046959,-500.0,0.00040999,6]
[394777107,1763937046968,-500.0,0.00040999,6]
[394777108,1763937046979,-500.0,0.00040999,6]
[394777109,1763937046988,-1500.0,0.00040999,6]
[394777110,1763937046998,-500.0,0.00040999,6]
[394777111,1763937047007,-500.0,0.00040999,6]
[394777112,1763937047016,-500.0,0.00040999,6]
[394777113,1763937047025,-1500.0,0.00040999,6]
[394777114,1763937047034,-500.0,0.00040999,6]
[394777115,1763937047044,-500.0,0.00040999,6]
[394777116,1763937047054,-1500.0,0.00040999,6]
[394777117,1763937047063,-203.77090285,0.00040999,6]
[394777118,1763937047072,-500.0,0.00040999,6]
[394777119,1763937047082,-500.0,0.00040999,6]
[394777120,1763937047093,-1000.0,0.00040999,6]
[394777121,1763937047104,-500.0,0.00040999,6]
[394777122,1763937047115,-500.0,0.00040999,6]
[394777123,1763937047124,-500.0,0.00040999,6]
[394777124,1763937047135,-500.0,0.00040999,6]
[394777125,1763937047145,-500.0,0.00040999,6]
[394777126,1763937047154,-500.0,0.00040999,6]
[394777127,1763937047163,-500.0,0.00040999,6]
[394777128,1763937047175,-500.0,0.00040999,6]
[394777129,1763937047184,-500.0,0.00040999,6]
[394777130,1763937047193,-500.0,0.00040999,6]
[394777131,1763937047203,-500.0,0.00040999,6]
[394777132,1763937047214,-322.6107,0.00040999,6]
[394777133,1763937047223,-500.0,0.00040999,6]
[394777134,1763937047233,-500.0,0.00040999,6]
[394777135,1763937047242,-500.0,0.00040999,6]
[394777136,1763937047251,-500.0,0.00040999,6]
[394777137,1763937047260,-500.0,0.00040999,6]
[394777138,1763937047269,-500.0,0.00040999,6]
[394777139,1763937047280,-500.0,0.00040999,6]
[394777140,1763937047291,-500.0,0.00040999,6]
[394777141,1763937047301,-500.0,0.00040999,6]
[394777142,1763937047312,-500.0,0.00040999,6]
[394777143,1763937047321,-500.0,0.00040999,6]
[394777144,1763937047330,-500.0,0.00040999,6]
[394777145,1763937047339,-500.0,0.00040999,6]
[394777146,1763937047348,-1000.0,0.00040999,2]